bitfinex-derivatives/quotes_SOLF0:USTF0_20251126
["timestamp","ask_amount","ask_price","bid_price","bid_amount"]
[1764180306135,0.05290385,140.92,140.9,3.10125189]
[1764180306336,2.99,141.03,140.93,99.3635]
[1764180306636,6.3821,141.06,140.96,2.97]
[1764180306839,2.99,141.06,140.96,2.97]
[1764180307031,2.99,141.06,140.98,6.3854]
[1764180307234,0.04653598,141.03,141.01,0.04678639]
[1764180307637,3.03653598,141.03,141.01,0.04678639]
[1764180311837,0.04653598,141.03,141.01,0.04678639]
[1764180312038,3.10653598,141.03,141.01,0.04678639]
[1764180312637,0.04653598,141.03,141.01,0.04678639]
[1764180314645,3.10653598,141.03,141.01,0.04678639]
[1764180315644,3.06,141.0,140.91,2.91]
[1764180316445,3.06,141.02,140.93,2.91]
[1764180316645,0.05174904,140.99,140.96,0.04807407]
[1764180316953,3.06,140.98,140.96,0.04946011]
[1764180318241,3.06,140.98,140.9,2.91]
[1764180318846,3.06,141.02,140.92,2.91]
[1764180319047,6.3843,141.01,140.94,2.91]
[1764180319242,0.04550124,140.99,140.96,2.95604446]
[1764180320448,0.04550124,140.99,140.98,2.91]
[1764180321351,3.06,141.05,140.98,2.91]
[1764180321545,3.06,141.05,140.95,9.2966]
[1764180321752,3.06,141.05,140.96,2.91]
[1764180321949,3.06,141.05,140.99,6.385]
[1764180322352,0.05182652,141.03,141.01,0.04487493]
[1764180322551,3.11182652,141.03,141.01,0.04487493]
[1764180326854,0.05182652,141.03,141.01,2.95487493]
[1764180327260,0.05182652,141.03,141.01,9.33877493]
[1764180327456,0.05182652,141.03,141.01,6.42877493]
[1764180328054,0.05182652,141.03,141.01,9.33877493]
[1764180328359,0.05182652,141.03,141.01,0.04487493]
[1764180328560,3.11182652,141.03,141.01,0.04487493]
[1764180333662,0.05182652,141.03,141.01,0.04487493]
[1764180333861,3.11182652,141.03,141.01,0.04487493]
[1764180334567,3.06,141.02,140.93,2.91]
[1764180334971,3.06,141.02,140.95,6.3869]
[1764180335359,24.66,141.03,140.95,6.3869]
[1764180335360,3.06,140.99,140.97,0.04595923]
[1764180337863,0.0459632,141.0,140.97,0.04595923]
[1764180338368,3.1059632,141.0,140.97,0.04595923]
[1764180339668,0.0459632,141.0,140.98,9.2955]
[1764180340462,0.0459632,141.0,140.99,2.91]
[1764180342165,3.06,141.07,140.99,2.91]
[1764180343261,0.05221511,141.04,141.02,0.05096027]
[1764180344870,3.11221511,141.04,141.02,0.05096027]
[1764180345073,0.05221511,141.04,141.02,0.05096027]
[1764180345374,0.05221511,141.04,141.02,3.09096027]
[1764180347769,0.05221511,141.04,141.02,0.05096027]
[1764180350478,3.11221511,141.04,141.02,0.05096027]
[1764180351178,3.11221511,141.04,140.93,3.04]
[1764180351378,3.06,141.03,140.93,3.04]
[1764180351983,9.4444,141.01,140.94,9.4273]
[1764180352283,0.05258397,140.99,140.97,3.04]
[1764180352583,0.05204569,140.99,140.97,3.08903724]
[1764180352985,0.05204569,140.99,140.98,9.4255]
[1764180353582,0.05204569,140.99,140.97,0.04903724]
[1764180353887,3.11204569,140.99,140.97,0.04903724]
[1764180355186,3.11204569,140.99,140.92,3.04]
[1764180355387,6.3871,140.95,140.88,9.4299]
[1764180355576,3.06,140.95,140.88,3.04]
[1764180356076,0.0482659,140.93,140.91,3.04]
[1764180359887,3.1082659,140.93,140.9,0.04746252]
[1764180360784,3.1082659,140.93,140.81,3.04]
[1764180360989,3.06,140.89,140.81,3.04]
[1764180361885,3.06,140.85,140.77,3.04]
[1764180362083,3.06,140.83,140.74,3.04]
[1764180362286,3.06,140.82,140.74,3.04]
[1764180362679,3.06,140.82,140.75,3.04]
[1764180362880,0.04865354,140.8,140.77,0.04570142]
[1764180363091,3.10865354,140.8,140.77,0.04570142]
[1764180363485,0.04865354,140.8,140.77,0.04570142]
[1764180363793,0.04865354,140.8,140.78,102.5127]
[1764180363996,0.04865354,140.8,140.79,3.04]
[1764180364587,3.06,140.86,140.79,3.04]
[1764180365189,3.06,140.86,140.76,3.04]
[1764180365493,0.05220932,140.82,140.8,3.08616836]
[1764180365797,3.06,140.92,140.81,102.4902]
[1764180365987,24.4390068,140.97,140.86,3.04]
[1764180366188,3.06,140.97,140.86,3.04]
[1764180366488,3.06,140.97,140.87,3.09]
[1764180366687,0.04804493,140.93,140.91,0.05447473]
[1764180366889,3.01804493,140.93,140.91,0.05447473]
[1764180367192,2.97,140.92,140.83,3.09]
[1764180367785,9.359,140.91,140.83,3.09]
[1764180368402,0.05268188,140.88,140.86,0.05376246]
[1764180368881,3.02268188,140.88,140.86,0.05376246]
[1764180369199,0.05268188,140.88,140.86,0.05376246]
[1764180369792,0.05268188,140.88,140.86,3.14376246]
[1764180370588,0.05268188,140.88,140.86,0.05376246]
[1764180371796,2.96268188,140.88,140.86,0.05376246]
[1764180375100,0.05268188,140.88,140.86,0.05376246]
[1764180375489,2.96268188,140.88,140.86,0.05376246]
[1764180379595,2.96268188,140.88,140.82,9.4827]
[1764180379596,2.96268188,140.88,140.82,3.09]
[1764180380600,2.96268188,140.88,140.84,0.05202095]
[1764180382498,0.05268188,140.88,140.84,3.24202095]
[1764180383385,0.05268188,140.88,140.85,9.5813]
[1764180383788,0.05268188,140.88,140.86,9.5809]
[1764180384300,0.05268188,140.88,140.84,9.63362095]
[1764180384899,2.96268188,140.88,140.84,0.05202095]
[1764180385497,2.96268188,140.88,140.78,3.19]
[1764180385701,2.91,140.86,140.78,3.19]
[1764180385891,2.91,140.84,140.78,3.19]
[1764180386604,0.05030167,140.82,140.8,0.04635841]
[1764180387007,0.05030167,140.82,140.8,3.23635841]
[1764180387998,0.05030167,140.82,140.8,0.04635841]
[1764180388304,2.96030167,140.82,140.8,0.04635841]
[1764180390100,0.05030167,140.82,140.8,0.04635841]
[1764180390300,2.96030167,140.82,140.8,0.04635841]
[1764180392204,9.35320167,140.82,140.8,0.04635841]
[1764180393009,0.05030167,140.82,140.8,0.04635841]
[1764180393809,0.05030167,140.82,140.8,3.23635841]
[1764180394910,0.05030167,140.82,140.8,0.04635841]
[1764180395520,0.00030167,140.82,140.8,9.62995841]
[1764180395812,2.91,140.93,140.83,3.19]
[1764180396107,2.91,140.93,140.86,3.19]
[1764180396509,2.91,140.93,140.86,9.5809]
[1764180396705,2.95916147,140.91,140.88,0.05045022]
[1764180401615,0.04916147,140.91,140.88,3.08045022]
[1764180402008,0.04916147,140.91,140.88,0.05045022]
[1764180402608,0.04916147,140.91,140.88,3.08045022]
[1764180402915,0.04916147,140.91,140.88,9.47045022]
[1764180403115,0.04916147,140.91,140.89,3.03]
[1764180403303,0.04916147,140.91,140.88,6.44045022]
[1764180403506,0.04916147,140.91,140.88,9.47045022]
[1764180405912,0.04916147,140.91,140.88,3.08045022]
[1764180406815,0.04916147,140.91,140.9,3.03]
[1764180407117,0.04916147,140.91,140.89,6.3896]
[1764180407318,0.04916147,140.91,140.88,3.08045022]
[1764180409023,0.04916147,140.91,140.88,9.47045022]
[1764180409212,0.04916147,140.91,140.89,3.03]
[1764180413221,0.04916147,140.91,140.89,9.4196]
[1764180413423,3.05,141.02,140.91,3.03]
[1764180414025,3.05,141.02,140.94,3.03]
[1764180414417,0.04595562,140.99,140.97,0.04523569]
[1764180415518,0.04595562,140.99,140.97,3.07523569]
[1764180417013,3.05,141.05,140.97,3.07523569]
[1764180417218,3.05,141.05,140.98,3.03]
[1764180417414,24.66,141.07,140.98,3.03]
[1764180417618,31.0416,141.07,141.01,3.03]
[1764180418021,24.66,141.07,141.01,3.03]
[1764180418325,0.04921629,141.05,141.03,3.0819068]
[1764180418522,3.1006365,141.05,141.03,0.04747722]
[1764180418928,0.0506365,141.05,141.03,3.07747722]
[1764180420418,3.05,141.13,141.07,3.03]
[1764180420617,85.16,141.17,141.07,3.03]
[1764180420618,3.05,141.16,141.07,3.03]
[1764180421222,3.05,141.13,141.04,3.03]
[1764180421527,99.217,141.15,141.07,0.05101227]
[1764180421528,3.10003891,141.1,141.07,0.05101227]
[1764180422726,3.05,141.09,141.07,0.05101227]
[1764180423313,0.05003891,141.1,141.07,3.08101227]
[1764180424422,3.10003891,141.1,141.07,0.05101227]
[1764180424627,0.05003891,141.1,141.07,0.05101227]
[1764180424826,0.05003891,141.1,141.07,3.08101227]
[1764180426329,3.05,141.13,141.07,3.08101227]
[1764180426330,3.01,141.17,141.07,3.08101227]
[1764180426529,3.01,141.17,141.07,3.03]
[1764180426721,3.01,141.17,141.08,3.01]
[1764180426921,3.01,141.17,141.09,3.01]
[1764180427433,3.06085471,141.14,141.12,0.05359852]
[1764180427733,0.04953564,141.14,141.12,0.05359852]
[1764180428628,3.05953564,141.14,141.12,0.05359852]
[1764180429230,9.43803564,141.14,141.12,0.05359852]
[1764180429430,3.01,141.13,141.12,0.05359852]
[1764180429731,3.05953564,141.14,141.12,0.05359852]
[1764180432537,9.43803564,141.14,141.12,0.05359852]
[1764180432741,2.98,141.13,141.04,3.02]
[1764180433141,2.98,141.13,141.07,3.02]
[1764180433641,0.04822931,141.11,141.09,3.07343787]
[1764180434049,105.11387,141.18,141.09,3.07343787]
[1764180434050,2.98,141.17,141.09,3.07343787]
[1764180434340,2.98,141.17,141.09,3.02]
[1764180435133,0.0497613,141.14,141.12,0.05231189]
[1764180436141,0.0497613,141.14,141.12,3.07231189]
[1764180439565,0.0497613,141.14,141.12,9.45141189]
[1764180440266,0.0497613,141.14,141.13,3.02]
[1764180441465,0.0497613,141.14,141.12,0.05231189]
[1764180441857,0.0497613,141.14,141.12,3.07231189]
[1764180443159,0.0497613,141.14,141.12,0.05231189]
[1764180443160,3.0297613,141.14,141.12,0.05231189]
[1764180443763,0.0497613,141.14,141.12,3.07231189]
[1764180444670,0.0497613,141.14,141.12,9.45151189]
[1764180444965,0.0497613,141.14,141.13,3.02]
[1764180447174,0.0497613,141.14,141.12,3.07231189]
[1764180448165,0.0497613,141.14,141.12,0.05231189]
[1764180448568,2.98,141.12,141.05,3.02]
[1764180448870,2.98,141.17,141.05,3.02]
[1764180449069,5.79085608,141.14,141.09,3.02]
[1764180449269,2.98,141.13,141.09,3.02]
[1764180449463,2.98,141.13,141.06,3.02]
[1764180449464,2.81085608,141.12,141.06,3.02]
[1764180449669,0.04921961,141.1,141.08,3.0671511]
[1764180450568,0.04921961,141.1,141.08,9.4480511]
[1764180450765,0.04921961,141.1,141.09,3.02]
[1764180451074,0.04921961,141.1,141.08,0.0471511]
[1764180451277,3.02921961,141.1,141.08,0.0471511]
[1764180452070,2.98,141.09,141.08,0.0471511]
[1764180452272,2.98,141.09,141.02,3.02]
[1764180452474,2.98,141.05,140.99,3.02]
[1764180452775,2.98,141.05,140.95,3.02]
[1764180453275,0.04708137,141.01,140.99,3.07238161]
[1764180456478,2.98,141.09,140.99,3.07238161]
[1764180456780,2.98,141.09,140.99,3.02]
[1764180456982,9.3607,141.09,141.01,9.404]
[1764180457488,0.05023527,141.06,141.04,0.04543408]
[1764180458486,0.05023527,141.06,141.04,3.06543408]
[1764180459378,0.05023527,141.06,141.04,0.04543408]
[1764180459578,3.03023527,141.06,141.04,0.04543408]
[1764180459985,0.05023527,141.06,141.04,0.04543408]
[1764180460482,3.03023527,141.06,141.04,0.04543408]
[1764180462386,0.05023527,141.06,141.04,0.04543408]
[1764180462774,504.81645128,141.17,141.04,3.16543408]
[1764180462977,354.57887708,141.56,141.05,1.42]
[1764180463183,354.57887708,141.56,141.04,3.16543408]
[1764180463184,43.85883378,141.98,141.85,98.7202]
[1764180463482,6.70463422,142.07,141.89,98.691]
[1764180463785,6.70463422,142.08,141.91,6.06186639]
[1764180464081,6.70463422,142.08,141.98,6.03777815]
[1764180464082,6.70463422,142.04,141.98,6.03777815]
[1764180464284,21.55194256,142.13,142.02,20.78634464]
[1764180464485,6.70463422,142.08,142.03,15.76993537]
[1764180464783,18.95826631,142.08,141.9,45.14756905]
[1764180464989,18.95826631,141.99,141.9,45.14756905]
[1764180465186,27.48,142.07,141.93,11.80346833]
[1764180465407,0.05068792,141.96,141.83,98.7325]
[1764180465574,8.50847704,141.95,141.81,98.7472]
[1764180465879,8.50847704,141.95,141.73,296.4024]
[1764180465880,1.87,141.93,141.74,98.7945]
[1764180466077,1.87,141.91,141.74,98.7945]
[1764180466287,1.87,141.89,141.73,18.95826631]
[1764180466586,1.87,141.81,141.66,18.95826631]
[1764180466786,1.87,141.81,141.65,98.8572]
[1764180466975,1.87,141.81,141.7,18.95826631]
[1764180467383,1.87,141.81,141.66,18.95826631]
[1764180467582,1.92309546,141.75,141.72,0.0457573]
[1764180467784,1.91479874,141.75,141.72,0.04754827]
[1764180467980,1.91479874,141.75,141.63,18.95826631]
[1764180467981,1.42,141.74,141.63,18.95826631]
[1764180468186,1.87,141.75,141.63,18.95826631]
[1764180468688,1.87,141.75,141.63,22.07826631]
[1764180468886,0.05290894,141.7,141.68,0.04746487]
[1764180469088,0.05138252,141.7,141.68,0.04746487]
[1764180469285,0.05138252,141.7,141.68,3.16746487]
[1764180469495,1.87,141.81,141.69,3.12]
[1764180470488,0.05247131,141.76,141.74,0.04833323]
[1764180470783,0.04587312,141.76,141.74,0.04833323]
[1764180471382,1.92,141.86,141.74,3.16833323]
[1764180471580,1.92,141.86,141.74,3.12]
[1764180471784,1.92,141.86,141.69,3.12]
[1764180471988,1.92,141.84,141.69,3.12]
[1764180472378,0.04971244,141.78,141.75,0.04954825]
[1764180472580,0.05256049,141.78,141.75,0.05322108]
[1764180474183,1.97256049,141.78,141.64,22.07826631]
[1764180474489,1.92,141.78,141.65,3.12]
[1764180475178,0.04707867,141.73,141.7,0.04709463]
[1764180476081,0.04707867,141.73,141.7,3.16709463]
[1764180478286,0.04707867,141.73,141.7,0.04709463]
[1764180479001,1.92,141.82,141.7,3.16709463]
[1764180479295,1.96,141.8,141.7,3.12]
[1764180479986,0.05042871,141.76,141.74,0.04785434]
[1764180482783,0.05042871,141.76,141.74,3.16785434]
[1764180483082,1.96,141.89,141.75,3.12]
[1764180483897,0.04794895,141.83,141.81,0.05077408]
[1764180484099,0.05125818,141.83,141.81,0.05077408]
[1764180484989,5.89118,141.9,141.81,3.17077408]
[1764180485192,2.01,141.89,141.77,3.12]
[1764180485391,2.01,141.89,141.78,3.12]
[1764180486097,0.05165143,141.85,141.82,7.87360115]
[1764180486801,5.89118,141.9,141.82,7.87360115]
[1764180487185,5.89118,141.9,141.84,7.82]
[1764180487693,0.05402686,141.88,141.87,7.82]
[1764180487900,5.89118,141.9,141.87,7.82]
[1764180488089,5.89118,141.9,141.82,7.82]
[1764180488288,5.89118,141.9,141.84,7.82]
[1764180488502,7.36,141.97,141.84,7.82]
[1764180488886,7.36,141.97,141.89,0.04616615]
[1764180489088,14.81867206,141.97,141.89,0.04616615]
[1764180489289,7.36,141.96,141.89,0.04616615]
[1764180491003,7.36,141.95,141.89,0.04616615]
[1764180491603,7.08,141.97,141.89,0.04616615]
[1764180491802,7.08,141.95,141.84,7.82]
[1764180492598,98.6212,142.0,141.84,7.82]
[1764180492599,34.26,142.0,141.84,7.82]
[1764180492800,0.05251708,141.93,141.92,7.17]
[1764180492997,0.04967954,141.94,141.91,0.05382474]
[1764180494000,7.12967954,141.94,141.91,0.05382474]
[1764180494200,7.12967954,141.94,141.79,7.17]
[1764180494501,7.08,141.94,141.79,7.17]
[1764180494706,7.08,141.98,141.83,7.17]
[1764180495104,0.05265841,141.92,141.89,0.05149531]
[1764180495410,0.05050684,141.92,141.89,0.05052276]
[1764180495609,0.05050684,141.92,141.89,7.22052276]
[1764180497314,0.05050684,141.92,141.89,0.05052276]
[1764180497910,7.13050684,141.92,141.89,0.05052276]
[1764180498308,7.08,141.9,141.81,7.17]
[1764180498507,105.7686,141.9,141.81,7.17]
[1764180498815,6.3449,141.89,141.81,7.17]
[1764180499210,7.08,141.9,141.81,7.17]
[1764180499405,0.04589299,141.86,141.84,0.05268167]
[1764180500509,6.39209299,141.86,141.84,0.05268167]
[1764180500717,112.18799299,141.86,141.84,0.05268167]
[1764180500910,98.723,141.85,141.77,7.17]
[1764180501112,98.723,141.85,141.73,7.17]
[1764180501113,105.817,141.83,141.73,7.17]
[1764180501308,7.08,141.83,141.73,7.17]
[1764180501505,105.8213,141.83,141.73,7.17]
[1764180501709,98.7476,141.82,141.73,7.17]
[1764180502205,0.04959864,141.79,141.76,0.04506151]
[1764180503211,105.89669864,141.79,141.76,0.04506151]
[1764180503520,6.3498,141.78,141.76,0.04506151]
[1764180504018,7.12959864,141.79,141.76,0.04506151]
[1764180504817,7.12959864,141.79,141.69,7.17]
[1764180505117,7.08,141.79,141.69,7.17]
[1764180505516,6.3489,141.8,141.7,7.17]
[1764180506020,6.3484,141.81,141.7,13.5228]
[1764180506208,0.05309791,141.76,141.75,7.17]
[1764180506410,26.92,141.85,141.75,7.17]
[1764180506610,6.3473,141.84,141.75,7.17]
[1764180506911,98.7116,141.87,141.75,7.17]
[1764180507107,98.7159,141.86,141.77,7.17]
[1764180507308,105.7916,141.87,141.78,6.32815022]
[1764180507513,0.04640116,141.83,141.8,0.0533486]
[1764180507729,0.04640116,141.83,141.81,6.32815022]
[1764180507918,0.04640116,141.83,141.8,0.0533486]
[1764180507919,0.04640116,141.83,141.8,7.2233486]
[1764180508113,0.04640116,141.83,141.82,7.17]
[1764180508322,0.04640116,141.83,141.82,13.49648057]
[1764180508620,0.04640116,141.83,141.82,6.32648057]
[1764180511627,4.98,141.81,141.8,0.0033486]
[1764180511924,136.891,141.82,141.8,0.0033486]
[1764180512115,4.98,141.81,141.8,0.0033486]
[1764180512511,6.4,141.81,141.8,0.0033486]
[1764180512718,98.7859,141.76,141.68,7.17]
[1764180513019,125.5918,141.78,141.68,7.17]
[1764180513330,6.3511,141.75,141.68,7.17]
[1764180513619,98.788,141.76,141.68,7.17]
[1764180513816,0.04811203,141.73,141.7,0.05105965]
[1764180514623,6.40011203,141.73,141.7,0.05105965]
[1764180515027,6.3526,141.72,141.7,0.05105965]
[1764180515817,0.04811203,141.73,141.7,0.05105965]
[1764180516226,103.83721203,141.73,141.7,0.05105965]
[1764180516418,0.04811203,141.73,141.7,0.05105965]
[1764180516825,0.04811203,141.73,141.7,7.22105965]
[1764180517023,6.3493,141.79,141.7,7.22105965]
[1764180517321,307.53080145,141.84,141.7,7.22105965]
[1764180517322,110.26520145,141.84,141.72,7.17]
[1764180517527,110.26520145,141.84,141.74,7.17]
[1764180517528,6.3471,141.84,141.74,7.17]
[1764180517823,98.7058,141.88,141.78,7.17]
[1764180518131,0.04709926,141.84,141.82,0.05091779]
[1764180518521,6.39419926,141.84,141.82,0.05091779]
[1764180519616,6.39419926,141.84,141.68,125.5742]
[1764180519617,6.3483,141.81,141.74,7.17]
[1764180519828,98.7436,141.82,141.74,7.17]
[1764180520222,6.3489,141.8,141.74,7.17]
[1764180520419,98.7513,141.81,141.74,7.17]
[1764180520617,6.3498,141.78,141.76,0.05151853]
[1764180520814,0.04513599,141.79,141.76,0.05151853]
[1764180521232,98.81353599,141.79,141.76,0.05151853]
[1764180521428,102.82353599,141.79,141.76,0.05151853]
[1764180521627,4.01,141.78,141.76,0.05151853]
[1764180521827,10.3598,141.78,141.76,0.05151853]
[1764180522126,4.01,141.77,141.76,0.05151853]
[1764180522634,6.3498,141.78,141.76,0.05151853]
[1764180523229,10.3598,141.78,141.76,0.05151853]
[1764180523822,6.3498,141.78,141.76,0.05151853]
[1764180525026,10.3598,141.78,141.76,0.05151853]
[1764180525434,4.01,141.77,141.76,0.05151853]
[1764180525732,6.3498,141.78,141.76,0.05151853]
[1764180526134,10.3598,141.78,141.76,0.05151853]
[1764180526327,4.01,141.77,141.76,0.05151853]
[1764180526832,6.3498,141.78,141.76,0.05151853]
[1764180529132,0.04513599,141.79,141.76,0.05151853]
[1764180529339,0.04513599,141.79,141.76,6.93151853]
[1764180532235,98.6889,141.9,141.76,8.35151853]
[1764180532543,98.6962,141.89,141.76,6.88]
[1764180532841,98.7022,141.88,141.78,6.88]
[1764180533336,0.04581091,141.84,141.82,6.9324143]
[1764180533529,98.6885,141.9,141.82,6.9324143]
[1764180533737,6.3458,141.87,141.82,6.9324143]
[1764180533926,4.1,141.9,141.82,6.9324143]
[1764180534323,6.3448,141.89,141.82,6.9324143]
[1764180534531,0.04744236,141.87,141.85,6.88]
[1764180534940,0.04744236,141.87,141.84,0.05378426]
[1764180535635,6.3462,141.86,141.84,0.05378426]
[1764180535942,4.1,141.85,141.84,0.05378426]
[1764180536327,6.3476,141.83,141.76,6.88]
[1764180536540,102.828,141.85,141.76,6.88]
[1764180536730,98.73,141.84,141.76,6.88]
[1764180537233,98.7451,141.82,141.76,6.88]
[1764180537435,0.04975043,141.8,141.78,0.0536642]
[1764180537627,0.04975043,141.8,141.78,6.9336642]
[1764180539045,0.04975043,141.8,141.78,0.0536642]
[1764180539339,0.04975043,141.8,141.78,6.9336642]
[1764180541534,0.04975043,141.8,141.78,0.0536642]
[1764180542540,10.49885043,141.8,141.78,0.0536642]
[1764180542736,4.1,141.79,141.78,0.0536642]
[1764180543138,98.7831,141.77,141.7,6.88]
[1764180543538,4.1,141.79,141.7,6.88]
[1764180543736,12.6944,141.84,141.66,98.8542]
[1764180543737,34.57015093,142.02,141.98,98.6283]
[1764180543941,34.57015093,142.02,141.93,98.6622]
[1764180543942,14.7790841,142.01,142.0,17.63393853]
[1764180544144,0.04834077,142.02,142.0,18.76238299]
[1764180544440,0.05323359,142.02,142.01,12.66386972]
[1764180544645,27.42983356,142.02,142.01,6.95693906]
[1764180544839,14.83231769,142.02,142.01,12.64870899]
[1764180545344,27.42983356,142.02,142.01,12.64870899]
[1764180545867,27.42983356,142.02,141.97,6.07073762]
[1764180545868,22.46231769,142.02,141.97,6.07073762]
[1764180546038,14.7790841,142.01,141.97,6.07073762]
[1764180546549,14.7790841,142.01,141.94,7.60925976]
[1764180546550,14.7790841,142.0,141.94,7.60925976]
[1764180546741,14.7790841,142.01,141.95,7.60925976]
[1764180546947,6.3379,142.04,141.95,7.60925976]
[1764180547135,14.7790841,142.05,141.97,0.04538139]
[1764180547341,0.05246375,142.01,141.97,0.04538139]
[1764180547643,0.05246375,142.01,141.96,7.60925976]
[1764180547841,0.05285379,142.0,141.98,0.05405443]
[1764180548047,0.0450122,142.0,141.98,0.05405443]
[1764180548950,22.4090841,141.99,141.93,7.60925976]
[1764180549147,22.4090841,141.99,141.92,7.60925976]
[1764180549347,14.7790841,141.98,141.92,7.60925976]
[1764180549549,106.2702,141.97,141.9,7.60925976]
[1764180549744,22.4090841,141.97,141.88,7.60925976]
[1764180550047,7.68095976,141.94,141.91,0.04508243]
[1764180550448,14.7790841,141.93,141.91,0.04508243]
[1764180552655,14.7790841,141.92,141.91,0.04508243]
[1764180552852,14.7790841,141.93,141.91,0.04508243]
[1764180553045,14.7790841,141.92,141.91,0.04508243]
[1764180553247,7.44,141.87,141.84,7.60925976]
[1764180553556,7.44,141.87,141.75,11.42851421]
[1764180553557,7.44,141.84,141.75,11.42851421]
[1764180553849,6.3495,141.78,141.75,11.42851421]
[1764180554051,98.7473,141.82,141.73,18.87592576]
[1764180554245,0.04775429,141.79,141.76,0.04515776]
[1764180554444,0.04775429,141.79,141.76,11.47367197]
[1764180554653,14.60982434,141.77,141.72,0.38367197]
[1764180554858,98.8482,141.67,141.62,3.12370589]
[1764180555055,98.8482,141.67,141.51,26.9885153]
[1764180555056,106.3021,141.65,141.54,7.44741155]
[1764180555255,7.44741155,141.7,141.51,26.9885153]
[1764180555256,7.16982434,141.6,141.51,29.02468524]
[1764180555555,7.16982434,141.6,141.43,84.54]
[1764180555556,106.34841155,141.6,141.45,19.25332666]
[1764180555747,106.34841155,141.6,141.47,21.29]
[1764180555748,98.9347,141.55,141.47,21.29]
[1764180555943,0.05060512,141.54,141.51,0.04458663]
[1764180556148,197.8916,141.53,141.51,0.04458663]
[1764180556349,98.9838,141.48,141.39,7.44741155]
[1764180556554,98.9914,141.47,141.38,160.06147151]
[1764180556853,105.3847,141.43,141.38,133.30147151]
[1764180557056,99.0332,141.41,141.38,133.30147151]
[1764180557259,7.16982434,141.42,141.33,84.56]
[1764180557555,98.9667,141.51,141.33,84.56]
[1764180557556,7.44,141.57,141.37,19.07822168]
[1764180557747,7.44,141.57,141.38,0.04988619]
[1764180557943,7.44,141.53,141.38,5.27797377]
[1764180558147,7.44,141.53,141.39,5.27797377]
[1764180558348,7.44,141.53,141.35,99.0687]
[1764180558652,13.58082173,141.52,141.37,19.07822168]
[1764180558856,6.14082173,141.51,141.38,5.26992715]
[1764180559155,6.14082173,141.5,141.43,0.04674143]
[1764180559356,7.44,141.63,141.46,98.9902]
[1764180559555,7.44,141.63,141.45,98.9986]
[1764180559762,7.44,141.63,141.44,144.90312168]
[1764180560060,7.44,141.63,141.44,45.89822168]
[1764180560259,7.44,141.63,141.45,5.25048207]
[1764180560460,0.05107804,141.55,141.52,0.04632327]
[1764180560866,7.44,141.63,141.48,26.84]
[1764180561052,0.05144575,141.55,141.52,0.04699614]
[1764180561260,7.44,141.63,141.48,26.84]
[1764180561455,0.0537814,141.55,141.52,0.05014158]
[1764180561661,1.17919288,141.48,141.44,19.07822168]
[1764180561861,98.8587,141.66,141.45,32.05949742]
[1764180562164,19.07822168,142.03,141.8,98.7527]
[1764180562348,7.44,142.0,141.78,98.7695]
[1764180562555,7.44,141.96,141.75,19.07822168]
[1764180562762,0.0472268,141.89,141.87,0.04535324]
[1764180562962,8.84,141.88,141.68,98.8408]
[1764180563157,19.07822168,141.85,141.69,5.21764579]
[1764180563359,7.44,141.83,141.62,98.8805]
[1764180563663,19.07822168,141.8,141.63,5.2922804]
[1764180563876,7.44,141.75,141.64,5.2922804]
[1764180564163,7.44,141.67,141.46,98.9912]
[1764180564361,7.44,141.67,141.45,98.9993]
[1764180564553,7.44,141.63,141.47,1.22924762]
[1764180564754,7.44,141.62,141.48,98.9767]
[1764180565063,7.44,141.67,141.54,98.9338]
[1764180565361,7.44,141.67,141.53,98.94]
[1764180565563,7.48806998,141.56,141.53,0.04932424]
[1764180565865,28.32,141.65,141.48,98.9768]
[1764180566069,7.48919071,141.56,141.53,0.05383165]
[1764180566372,7.44,141.56,141.41,99.0273]
[1764180566862,7.44,141.56,141.38,99.0504]
[1764180566863,7.44,141.55,141.37,99.0507]
[1764180567064,7.44,141.55,141.36,127.383]
[1764180567267,7.44,141.51,141.35,105.4389]
[1764180567566,7.44,141.44,141.3,99.101]